Cogmind - Beta 16 @@@ ROGUE MODE // 2025.12.15 @ 02:41:38 Player: sercli123 Result: Destroyed by X-57 Shotgunner with Shotgun Performance ------------- Evolutions (2) 1000 Regions Visited (4) 800 Robots Destroyed (98) 490 Value Destroyed (2978) 2978 Prototype IDs (8) 160 Alien Tech Used (0) 0 Bonus (320) 320 TOTAL SCORE: 5748 Bonus ------- High Alert Combat Kills 120 Entered Garrisons 200 Cogmind --------- Core Integrity 0/550 Matter 249/300 Energy 98/100 System Corruption 0% Temperature Cool (0) Movement Core (50) Location -8/Garrison Parts ------- > --- POWER (1) -------- (None) > --- PROPULSION (5) --- (None) > --- UTILITY (2) ------ (None) > --- WEAPON (3) ------- (None) > --- INVENTORY (5) ---- Nuclear Core Matter Filter Heavy Armor Plating Field Recycling Unit (0) Peak State ------------ > --- POWER ------------ Nuclear Core > --- PROPULSION ------- Improved Treads Armored Treads Armored Treads Armored Treads Armored Treads > --- UTILITY ---------- Huge Storage Unit Matter Filter > --- WEAPON ----------- Improved Assault Rifle Improved Assault Rifle Flak Cannon > --- INVENTORY -------- Nuclear Core Improved Treads Small Matter Pod Matter Filter Matter Filter Medium Armor Plating Medium Armor Plating Medium Armor Plating Hardened Light Armor Plating Hacking Suite System Restoration Module System Restoration Module Field Recycling Unit Autogun Autogun Minigun Minigun Flak Cannon Katana [Rating: 36] Favorites ----------- Power Nuclear Core Engine Heavy Ion Engine Power Core Nuclear Core Propulsion Armored Treads Treads Armored Treads Leg Aluminum Leg Wheel Compact Wheel Utility Small Storage Unit Device Matter Filter Storage Small Storage Unit Processor Signal Interpreter Hackware Hacking Suite Protection Hardened Light Armor Plating Weapon Improved Assault Rifle Energy Gun Particle Gun Energy Cannon Advanced Beam Cannon Ballistic Gun Improved Assault Rifle Ballistic Cannon Flak Cannon Slashing Weapon Katana Build | -11 -10 -9 -8 -8 ------- Run | Yrd Mat Mat Mat Gar Slots Evolved 4 | . . 2 2 . Power . | . . . . . Propulsion 3 | . . 2 1 . Utility . | . . . . . Weapon 1 | . . . 1 . Parts Attached 52 | 5 5 35 5 2 Power 7 | 1 1 4 1 . Engine 4 | 1 . 3 . . Core 3 | . 1 1 1 . Reactor . | . . . . . Propulsion 18 | 2 1 15 . . Treads 10 | . 1 9 . . Leg 5 | 1 . 4 . . Wheel 3 | 1 . 2 . . Hover . | . . . . . Flight . | . . . . . Utility 12 | 1 1 7 2 1 Device 3 | . . 2 1 . Storage 4 | 1 . 3 . . Processor 2 | . 1 1 . . Hackware 1 | . . . 1 . Protection 2 | . . 1 . 1 Artifact . | . . . . . Weapon 15 | 1 2 9 2 1 Energy Gun 2 | . 1 1 . . Energy Cannon 1 | . . 1 . . Ballistic Gun 7 | 1 1 5 . . Ballistic Cannon 4 | . . 2 2 . Launcher . | . . . . . Special Weapon . | . . . . . Impact Weapon . | . . . . . Slashing Weapon 1 | . . . . 1 Piercing Weapon . | . . . . . Special Melee Weapon . | . . . . . Unidentified Prototypes 2 | . . 2 . . Parts Lost 20 | . 3 8 2 7 Power 5 | . 1 3 . 1 Propulsion 9 | . . 4 2 3 Utility 2 | . . . . 2 Weapon 4 | . 2 1 . 1 Highest Loss Streak 7 | . 2 3 2 7 To Critical Strikes . | . . . . . Average Backups 11 | 3 5 7 16 21 Power . | . 1 . 1 1 Propulsion 1 | 1 3 . 2 . Utility 4 | . . 2 8 12 Weapon 4 | 1 1 4 4 6 Tool/Special . | . . . . . Unused Backups 18 | . . 3 1 14 Power 1 | . . . . 1 Propulsion . | . . . . . Utility 11 | . . . 1 10 Weapon 6 | . . 3 . 3 Tool/Special . | . . . . . Average Slot Usage (%) 97 | . 96 97 98 95 Engine 4 | . 7 8 1 . Core 5 | . 6 2 7 8 Treads 30 | . 12 21 44 43 Leg 5 | . 1 13 . . Wheel 5 | . 14 7 . . Device 4 | . . 4 4 8 Storage 12 | . 14 14 9 8 Processor 2 | . 12 2 . . Energy Gun 1 | . . 2 . . Energy Cannon 1 | . . 3 . . Ballistic Gun 16 | . 26 9 18 17 Ballistic Cannon 5 | . . 4 8 8 Peak Build Rating 36 | 5 10 22 36 36 Average Rating 22 | 3 8 17 32 34 On Entrance 14 | . 5 9 22 36 Avg Prop Armor Cover (%) 14 | 4 11 17 . . Naked Turns 4 | . . . . 4 Heaviest Build 106 | 12 15 92 105 106 Greatest Support 106 | 16 16 92 106 106 Greatest Overweight (x) 2 | 1 1 2 1 1 Average Overweight (x) . | . . . . . Largest Inventory Capacity 25 | 8 8 25 25 25 Average Capacity 16 | 7 8 9 25 24 Most Carried 23 | 6 7 13 23 23 Average Carried 11 | 4 5 7 16 22 Final Capacity 25 | 8 8 25 25 5 Final Carried 23 | 6 6 13 23 5 Class Distribution -------------------- 45% | Mutant 24% | Scientist-Gunner 11% | Gunner 9% | Scavenger-Mutant 5% | Tank 3% | Scientist-Tank Dominant Class ---------------- Mutant | -10/Materials Mutant | -9/Materials Scientist-Gunner | -8/Materials Scientist-Gunner | -8/Garrison Resources | -11 -10 -9 -8 -8 ----------- Run | Yrd Mat Mat Mat Gar Matter Collected 2542 | 135 431 1022 860 94 Remotely . | . . . . . Salvage Created 3208 | . 528 1433 1095 152 Parts 184 | . 36 82 56 10 Haulers Intercepted 6 | . . 4 2 . Recyclers Shooed 3 | . 1 2 . . Parts Field Recycled . | . . . . . Retrieved Matter . | . . . . . Parts Self-Destructed . | . . . . . Prevented . | . . . . . Parts Restored . | . . . . . Kills | -11 -10 -9 -8 -8 ------- Run | Yrd Mat Mat Mat Gar Combat Hostiles Destroyed 77 | . 16 32 24 5 Guns 43 | . 16 13 14 . Cannons 34 | . . 19 10 5 Classes Destroyed 16 | . 3 5 6 2 Worker 1 | . . . 1 . Builder 1 | . . . 1 . Tunneler 1 | . . . 1 . Hauler 6 | . . 4 2 . Recycler 4 | . . 3 1 . Operator 2 | . . 2 . . Watcher 6 | . 1 3 2 . Swarmer 14 | . 6 5 3 . Cutter 2 | . . . 2 . Grunt 39 | . 10 16 10 3 Duelist 2 | . . 1 1 . Protector 1 | . . . . 1 Sentry 15 | . . 10 5 . Demolisher 1 | . . . . 1 Specialist 2 | . . . 2 . Heavy 1 | . . . 1 . Best Kill Streak 9 | . 5 9 7 3 Combat Bots Only 8 | . 5 8 6 3 Max Kills in Single Turn 2 | . 2 2 2 1 Gunslinging 1 | . 1 . . . Exploded . | . . . . . Melee . | . . . . . Uniques/NPCs Destroyed . | . . . . . Combat | -11 -10 -9 -8 -8 -------- Run | Yrd Mat Mat Mat Gar Hostile Shots Fired 477 | . 71 118 115 173 Missed 144 | . 23 30 30 61 Hits 333 | . 48 88 85 112 Melee 5 | . . 2 3 . Projectile 328 | . 48 86 82 112 AOE 5 | . . . 2 3 Critical Strikes 6 | . 1 1 4 . Damage Taken 4793 | . 507 1215 1525 1546 Core 772 | . 63 159 137 413 Absorbed by Shields . | . . . . . Core Remaining (%) 78 | 100 74 60 . . Volleys Fired 227 | . 52 93 65 17 Largest 3 | . 2 2 3 3 Hottest 105 | . 85 105 97 83 Shots Fired 535 | . 104 185 195 51 Gun 354 | . 104 77 139 34 Cannon 181 | . . 108 56 17 Launcher . | . . . . . Special . | . . . . . Kinetic 456 | . 101 109 195 51 Thermal 69 | . 3 66 . . Explosive . | . . . . . Electromagnetic 10 | . . 10 . . Robot Hit Streak 23 | . 6 9 21 23 Robot Miss Streak 7 | . 7 6 5 4 Penetration Max . | . . . . . Secondary Targets 5 | . 4 . 1 . Max Gunslinging Chain 1 | . 1 . 1 . Shots Hit Robots 373 | . 54 134 143 42 Core Hits 241 | . 27 101 86 27 Critical Kills 1 | . 1 . . . Critical Parts Destroyed 3 | . 1 . 1 1 Critical Strikes 5 | . 2 1 1 1 Burn 1 | . . 1 . . Destroy 4 | . 2 . 1 1 Melee Attacks . | . . . . . Impact . | . . . . . Slashing . | . . . . . Piercing . | . . . . . Sneak Attacks . | . . . . . Combat Hostiles . | . . . . . Follow-up Attacks . | . . . . . Damage Inflicted 6364 | . 710 2405 2503 746 Guns 3350 | . 710 768 1500 372 Cannons 3014 | . . 1637 1003 374 Explosions . | . . . . . Melee . | . . . . . Ramming . | . . . . . Kinetic 5502 | . 692 1561 2503 746 Thermal 772 | . 18 754 . . Explosive . | . . . . . Electromagnetic 90 | . . 90 . . Impact . | . . . . . Slashing . | . . . . . Piercing . | . . . . . Highest Corruption 6 | . . 6 . . Average Corruption 4 | . . 4 . . Corruption Purged . | . . . . . Corruption Blocked . | . . . . . Effects 32 | . . 32 . . Message Errors 10 | . . 10 . . Matter Fused 9 | . . 9 . . Heat Flow Errors 1 | . . 1 . . Energy Discharges 5 | . . 5 . . Parts Fused 1 | . . 1 . . Data Loss (minor) 5 | . . 5 . . Data Loss (major) 1 | . . 1 . . Overload Shots . | . . . . . Overflow Damage 87 | . . 84 . 3 Projectiles 13 | . . 10 . 3 Explosions 74 | . . 74 . . Melee . | . . . . . Knockbacks 60 | . . 30 17 13 Impact . | . . . . . Kinetic 52 | . . 25 16 11 Secondary 8 | . . 5 1 2 Self-Inflicted Damage 98 | . . 98 . . Shots 1 | . . 1 . . Rammed . | . . . . . Targets Rammed . | . . . . . Kicked . | . . . . . Crushed . | . . . . . Highest Temperature 384 | . 30 384 281 155 Average Temperature 80 | . 14 98 71 59 Received Heat Transfer 1539 | . 204 417 459 459 Effects 5 | . . 3 2 . Shutdowns 1 | . . 1 . . Energy Bleed 2 | . . . 2 . Interference 2 | . . 2 . . Siege Activations . | . . . . . Martial Activations . | . . . . . Shielding Activations . | . . . . . Robots Disrupted . | . . . . . Combat Hostiles . | . . . . . Robots Corrupted . | . . . . . Combat Hostiles . | . . . . . Parts Fried . | . . . . . Impact Corruptions . | . . . . . Robots Melted . | . . . . . Combat Hostiles . | . . . . . Parts Melted 2 | . . 2 . . Heat Transferred 1665 | . 37 1628 . . Parts Sabotaged . | . . . . . Parts Stolen . | . . . . . Parts Stripped . | . . . . . Power Chain Reactions . | . . . . . Alert | -11 -10 -9 -8 -8 ------- Run | Yrd Mat Mat Mat Gar Maximum Alert Level 2 | . 1 2 2 1 Low Security (%) 37 | 100 85 15 37 47 Level 1 43 | . 14 38 59 52 Level 2 19 | . . 45 3 . Level 3 . | . . . . . Level 4 . | . . . . . Level 5 . | . . . . . High Security . | . . . . . Max Security . | . . . . . Peak Influence 482 | . 234 482 407 251 Initial 169 | . . 91 169 166 Average 252 | . 100 349 228 205 Influence Increases 2388 | . 477 1063 763 85 Destroy 0b10 Robot/C 1520 | . 320 640 480 80 Destroy 0b10 Robot/NC 110 | . 5 60 40 5 Destroy Leader 404 | . 82 184 138 . Successful Hack 80 | . 10 43 27 . Select Force Hacks 30 | . 30 . . . Disable Machine 45 | . 15 30 . . Destroy Structure 34 | . . 31 3 . Lose Combat Pursuer 165 | . 15 75 75 . Influence Decreases 2207 | . 261 877 909 160 Entered New Map 448 | . . 125 233 90 Time Decay 1259 | . 231 522 506 . Lost Part 200 | . 30 80 20 70 Purge Threat 300 | . . 150 150 . Squads Dispatched 13 | . 5 3 5 . Investigation 6 | . 3 1 2 . Extermination . | . . . . . Reinforcement 7 | . 2 2 3 . Assault . | . . . . . Garrison . | . . . . . Intercept . | . . . . . Searches Triggered . | . . . . . Construction Impeded . | . . . . . Haulers Reinforced . | . . . . . Active Scanning Responses . | . . . . . Cargo Convoy Interrupts . | . . . . . Stealth | -11 -10 -9 -8 -8 --------- Run | Yrd Mat Mat Mat Gar Distress Signals 6 | . 2 4 . . Communications Jammed . | . . . . . Distress Signals . | . . . . . Times Spotted 125 | . 25 50 31 19 Peak Tracking Total 12 | . 5 10 8 12 Tactical Retreats 9 | . 1 3 5 . Traps | -11 -10 -9 -8 -8 ------- Run | Yrd Mat Mat Mat Gar Traps Triggered 3 | . 1 2 . . Indirectly . | . . . . . Trap Hack Attempts . | . . . . . Triggered . | . . . . . Disarmed . | . . . . . Reprogrammed . | . . . . . Reused . | . . . . . Traps Extracted . | . . . . . Installed . | . . . . . Triggered . | . . . . . Machines | -11 -10 -9 -8 -8 ---------- Run | Yrd Mat Mat Mat Gar Machines Disabled 3 | . 1 2 . . Max in Single Turn 1 | . 1 1 . . Machines Repaired . | . . . . . Machines Dismantled . | . . . . . Machines Sabotaged . | . . . . . Overloaded Fab Kills . | . . . . . Hacking | -11 -10 -9 -8 -8 --------- Run | Yrd Mat Mat Mat Gar Machines Accessed 22 | . 6 7 9 . Terminals 16 | . 4 6 6 . Fabricators . | . . . . . Repair Stations . | . . . . . Recycling Units 2 | . 2 . . . Scanalyzers 3 | . . 1 2 . Garrison Access 1 | . . . 1 . Total Hacks 77 | . 16 29 32 . Successful 57 | . 10 18 29 . Failed 19 | . 6 10 3 . Catastrophic 3 | . 1 1 1 . Database Lockouts 1 | . . 1 . . Manual 35 | . 3 18 14 . Terminals 58 | . 13 25 20 . Fabricators . | . . . . . Repair Stations . | . . . . . Recycling Units 3 | . 3 . . . Scanalyzers 15 | . . 4 11 . Garrison Access 1 | . . . 1 . Terminal Hacks 22 | . 9 6 7 . Robot Analysis 1 | . 1 . . . Prototype ID Bank 4 | . 1 2 1 . Alert Level 9 | . 3 2 4 . Unreport Threat 2 | . . 1 1 . Locate Traps 1 | . 1 . . . Dispatch Records 1 | . 1 . . . Zone Layout 4 | . 2 1 1 . Fabricator Hacks . | . . . . . Repair Station Hacks . | . . . . . Recycling Unit Hacks . | . . . . . Scanalyzer 13 | . . 2 11 . Insert Component 3 | . . 1 2 . Analyze 3 | . . 1 2 . Retrieve Study 7 | . . . 7 . Garrison Access Hacks 1 | . . . 1 . Unlock Access 1 | . . . 1 . Unauthorized Hacks 21 | . 1 10 10 . Terminals 20 | . . 10 10 . Botnet 11 | . . 5 6 . Skim 9 | . . 5 4 . Fabricators . | . . . . . Repair Stations . | . . . . . Recycling Units 1 | . 1 . . . Tunnel 1 | . 1 . . . Scanalyzers . | . . . . . Garrison Access . | . . . . . Data Cores Recovered 1 | . . 1 . . Used . | . . . . . Hacking Detections 18 | . 5 6 7 . Full Trace Events 8 | . 1 3 4 . Feedback Events 1 | . . 1 . . Corruption 1 | . . 1 . . Feedback Blocked . | . . . . . Robot Schematics Acquired . | . . . . . Robots Built . | . . . . . Authchips . | . . . . . Time . | . . . . . Total Robot Build Rating . | . . . . . Part Schematics Acquired 2 | . . . 2 . Parts Built . | . . . . . Authchips . | . . . . . Time . | . . . . . Total Part Build Rating . | . . . . . Part Studies Acquired 7 | . . . 7 . Parts Repaired . | . . . . . Time . | . . . . . Parts Recycled . | . . . . . Recycled Matter . | . . . . . Retrieved Matter . | . . . . . Retrieved Components . | . . . . . Parts Scanalyzed 3 | . . 1 2 . Part Schematics Acquired 2 | . . . 2 . Parts Damaged 1 | . . . 1 . Bothacking | -11 -10 -9 -8 -8 ------------ Run | Yrd Mat Mat Mat Gar Used RIF Installer . | . . . . . Robots Hacked . | . . . . . Non-combat . | . . . . . Combat . | . . . . . Robot Hacks Applied . | . . . . . Relay Couplers Released . | . . . . . Fabnet Peak Effective % . | . . . . . Robots Rewired . | . . . . . Allies Hacked . | . . . . . Hacks Repelled . | . . . . . Allies | -11 -10 -9 -8 -8 -------- Run | Yrd Mat Mat Mat Gar Total Allies . | . . . . . Largest Group . | . . . . . Highest-Rated Group . | . . . . . Highest-Rated Ally . | . . . . . Total Orders . | . . . . . Ally Attacks . | . . . . . Total Damage . | . . . . . Kills . | . . . . . Allies Corrupted . | . . . . . Allies Melted . | . . . . . Intel | -11 -10 -9 -8 -8 ------- Run | Yrd Mat Mat Mat Gar Active Infowar (turns) 202 | . . 202 . . T.N.C. 202 | . . 202 . . Robot Analysis Total 1 | . 1 . . . Derelict Logs Recovered . | . . . . . Drone Launches . | . . . . . Drone Recoveries . | . . . . . Exploration | -11 -10 -9 -8 -8 ------------- Run | Yrd Mat Mat Mat Gar Turns Passed 3678 | 61 525 1454 1369 269 Spaces Moved 1908 | 31 333 784 622 138 Core 24 | 6 . . . 18 Treads 1067 | . . 325 622 120 Legs 29 | 21 7 1 . . Wheels 788 | 4 326 458 . . Hover . | . . . . . Flight . | . . . . . Fastest Speed 50 | 50 100 90 166 50 Average Speed 138 | 149 101 127 168 153 Slowest Speed 250 | 190 190 250 248 205 Overloaded Moves . | . . . . . Propulsion Burnouts . | . . . . . Robots Hopped . | . . . . . Potential Cave-ins . | . . . . . Cave-ins Triggered . | . . . . . Exploration Rate (%) 42 | 3 75 71 41 24 Regions Visited 4 Branch Regions . Pre-discovered Areas 1 | . 1 . . . Known Exits Taken 2 | . 1 . 1 . Unknown Exits Taken 2 | 1 . 1 . . Scrap Searched . | . . . . . Spaces Dug . | . . . . . Terrain Destroyed 33 | . . 33 . . Melee . | . . . . . Projectile . | . . . . . AOE 33 | . . 33 . . Terrain Rammed . | . . . . . Walls Destroyed . | . . . . . Machines Disabled . | . . . . . Actions | -11 -10 -9 -8 -8 --------- Run | Yrd Mat Mat Mat Gar Total 2477 | 46 414 1057 803 157 Wait 177 | . 21 82 74 . Move 1904 | 30 332 783 621 138 Hop . | . . . . . Pick Up 59 | 11 4 26 18 . Fast Attach 13 | . . 10 2 1 Attach 37 | 5 4 18 9 1 Detach 8 | . . 6 2 . Swap 26 | . 1 17 8 . Drop 26 | . . 22 4 . Fire 227 | . 52 93 65 17 Melee . | . . . . . Ram . | . . . . . Kick . | . . . . . Crush . | . . . . . Escape Stasis . | . . . . . Rewire . | . . . . . Trap . | . . . . . Miscellaneous . | . . . . . Route ------- -11/Scrapyard -10/Materials (discovered 4 exits: *Mat x2 / [*Min x2]) -9/Materials (discovered 3 exits: *Mat x3) -8/Materials -8/Garrison History --------- Turn | Location | Event 25 | -11/Scrapyard | Discovered new exit (range 15) 62 | -11/Scrapyard | Entered Materials 268 | -10/Materials | Discovered new exit (range 14) 268 | -10/Materials | Discovered new exit (range 16) 303 | -10/Materials | Build established: Mutant 438 | -10/Materials | Discovered new exit (range 11) 584 | -10/Materials | Discovered new exit (range 3) 586 | -10/Materials | Identified exit to Materials 587 | -10/Materials | Entered another Materials area 587 | -9/Materials | Evolved 2 slots: Propulsion x2 899 | -9/Materials | Destroyed 8 combat bots 1004 | -9/Materials | Discovered new exit (range 15) 1228 | -9/Materials | Lost 3 parts (1p1n1w) 1373 | -9/Materials | Discovered new exit (range 6) 1565 | -9/Materials | Central database locked down 1938 | -9/Materials | Discovered new exit (range 15) 2041 | -9/Materials | Entered another Materials area 2041 | -8/Materials | Evolved 2 slots: Propulsion x1, Weapon x1 2315 | -8/Materials | Build established: Gunner 3000 | -8/Materials | Build established: Scientist-Gunner 3378 | -8/Materials | Identified exit to Garrison 3410 | -8/Materials | Entered Garrison 3448 | -8/Garrison | Triggered checkpoint 3514 | -8/Garrison | Triggered checkpoint 3622 | -8/Garrison | Triggered checkpoint 3628 | -8/Garrison | Triggered checkpoint 3654 | -8/Garrison | Triggered checkpoint 3665 | -8/Garrison | Core integrity fell below 50% 3665 | -8/Garrison | Triggered checkpoint 3669 | -8/Garrison | Released all parts (6) 3673 | -8/Garrison | Core integrity fell below 20% 3679 | -8/Garrison | Destroyed by X-57 Shotgunner with Shotgun Last Messages --------------- 03662_ G-47 Trooper destroyed. 03662_ Med. Armor Plating destroyed. 03665_ Beams of light sweep through the air. An alarm sounds. 03665_ Nuclear Core+ destroyed. 03665_ Slug penetrates Wall. 03668_ S-10 Pest destroyed. 03668_ G-47 Trooper destroyed. 03668_ Penetrated by Slug. 03668_ Imp. Treads+ destroyed. 03669_ S-10 Pest destroyed. 03669_ Released Imp. Assault Rifle. 03669_ Released Huge Storage Unit. 03669_ Released Arm. Treads+. 03669_ Released Flak Cannon+. 03669_ Released Imp. Treads+. 03670_ Acquired Katana+. 03671_ Penetrated by Slug. 03674_ Slug penetrates Reinforced Barrier. 03676_ Penetrated by Slug. 03676_ Katana+ destroyed. Map ----- +----------------------------------------------------+ | ?????????????????????????????????????????????????? | | ?????????????????????????????????????????????????? | | ?????????????????????????????????????????????????? | | ?????????????????????????????????????????????????? | | ?????????????????????????????????????????????????? | | ?????????????????????????????????????????????????? | | ?????????????????????????????????????????????????? | | ?????????????????????????????????????????????????? | | ?????????????????????????????????????????????????? | | ?????????????????????????????????????????????????? | | ?????????????????????????????????????????????????? | | ?????????????????????????????????????????????????? | | ?????????????????????????????????????????????????? | | ?????????????????????????????????????????????????? | | ??????????????####???????????????????????????????? | | ??????????????# ???????????????????????????????? | | ??????????????# ???????????????????????????????? | | ??????????????# #???????????????????????????????? | | ??????????????# #???????????????????????????????? | | ??????????????# #???????????????????????????????? | | ??????????????# #??????????#????????????????????? | | ????????####### #????????? #????????????????????? | | ????????# ## #????????? #????????????????????? | | ######### ## ##??????? #????????????????????? | | h ######## #????????????????????? | | @ #????????????????????? | | = s s x ?????????????? | | ???# ## !]!## x###################????????????? | | ?### ## !=!## ###????????????????????????????? | | ?# *![[!!! #????????????????????????????? | | ?# %[[[![ #????????????????????????????? | | ?# " ==[/[!= #????????????????????????????? | | ?# "%" *%= ] #????????????????????????????? | | ?###" ##%= ## ###????????????????????????????? | | #### ##! ## #####??????????????????????????? | | ^^ =% ?????????????????????????? | | ^^^ ?????????????????????????? | | #### ?????????????????????????? | | ???###### ###########?????????????????????????? | | ????????# #???????????????????????????????????? | | ????????######???????????????????????????????????? | | ?????????????????????????????????????????????????? | | ?????????????????????????????????????????????????? | | ?????????????????????????????????????????????????? | | ?????????????????????????????????????????????????? | | ?????????????????????????????????????????????????? | | ?????????????????????????????????????????????????? | | ?????????????????????????????????????????????????? | | ?????????????????????????????????????????????????? | | ?????????????????????????????????????????????????? | +----------------------------------------------------+ Best States ------------- Heat Dissipation 50 Energy Generation 16 Energy Capacity 280 Matter Stores 350 Matter Capacity 350 Sight Range 16 Terrain Scan Density 10 Armor Coverage 225 Evasion (%) 50 Recoil Reduction 5 Matter Filtering 30 Offensive Hacking 10 Item Schematics ----------------- Arm. Treads | -8/Materials | Scanalyzed Minigun | -8/Materials | Scanalyzed Robot Schematics ------------------ None Fabricated ------------ Nothing Repaired ---------- Nothing Studied --------- Arm. Treads | -8/Materials | Hacked Imp. Treads | -8/Materials | Hacked Flak Cannon | -8/Materials | Hacked Autogun | -8/Materials | Hacked Nuclear Core | -8/Materials | Hacked Minigun | -8/Materials | Hacked Katana | -8/Materials | Hacked Alien Tech Used ----------------- None Achievements -------------- None Challenges ------------ None Game ------ Seed PropulsionMappingBoregun Manual? 0 Play Time 00:58:09 Cumulative 85.7 hours Start 2025.12.15 @ 01:42:37 End 2025.12.15 @ 02:41:38 Sessions 1 Manual Loads 0 Difficulty Rogue Special Mode None Game No. 41 Rogue 41 Adventurer 0 Explorer 0 Win Type - Total 0 Types 0/0/0/0/0/0/0/0/0/0 Lore% 23 Gallery% 36 Achievement% 26 Wizard Run 0 Options --------- Layout 0 ASCII 0 Keyboard 0 Movement Mouse Keybinds 0 Fullscreen 2 Font 18/SmallcapsGlow Map View 38x25 Zoom Use 98% Tactical HUD 1 Map Filters NONE Filters NONE Steam 1 RUN: f0b041e9-f5dc-46b2-a466-2ecf7a2a30ff